Cogmind - Beta 14 @@@ ROGUE MODE // 2024.09.19 @ 14:32:36 Player: DZKane Result: Self-destructed Performance ------------- Evolutions (3) 1500 Regions Visited (8) 1600 Robots Destroyed (154) 770 Value Destroyed (3973) 3973 Prototype IDs (35) 700 Alien Tech Used (0) 0 Bonus (136) 136 TOTAL SCORE: 8679 Bonus ------- High Alert Combat Kills 66 Follower Combat Kills 70 Cogmind --------- Core Integrity 14/700 Matter 300/300 Energy 100/100 System Corruption 8% Temperature Warm (151) Movement Core (750) Ox14 Location -7/Factory Parts ------- > --- POWER (1) -------- (None) > --- PROPULSION (4) --- (None) > --- UTILITY (5) ------ High-capacity Storage Unit Machine Analyzer Hacking Suite > --- WEAPON (3) ------- Powered Hammer > --- INVENTORY (20) --- Improved Heat Sink High-capacity Matter Pod (200) Improved Targeting Computer Transmission Jammer ECM Suite Heavy Armor Plating Hacking Suite Hacking Suite Makeshift System Shield Authchip [Device] Trap Reconfigurator Sensor Drone Bay (20/20) Heavy Particle Cannon Flak Gun Heavy Missile Launcher Heavy Missile Launcher Datajack Powered Hammer Peak State ------------ > --- POWER ------------ Nuclear Core > --- PROPULSION ------- Improved Titanium Leg Improved Titanium Leg Improved Titanium Leg Improved Titanium Leg > --- UTILITY ---------- High-capacity Storage Unit Machine Analyzer Experimental Sensor Array Improved Signal Interpreter Hacking Suite > --- WEAPON ----------- Powered Hammer Powered Hammer Powered Hammer > --- INVENTORY -------- Light Nuclear Core Improved Heat Sink High-capacity Matter Pod Improved Targeting Computer Transmission Jammer ECM Suite Improved Utility Shielding Heavy Armor Plating Hacking Suite Hacking Suite Makeshift System Shield System Restoration Module Trap Reconfigurator Sensor Drone Bay Heavy Particle Cannon Heavy Missile Launcher Heavy Missile Launcher Datajack Powered Hammer [Rating: 57] Favorites ----------- Power Light Ion Engine Engine Light Ion Engine Power Core Light Nuclear Core Propulsion Aluminum Leg Leg Aluminum Leg Hover Unit Aerolev Unit Utility Large Storage Unit Device Improved Heat Sink Storage Large Storage Unit Processor Machine Analyzer Hackware Hacking Suite Protection Light Armor Plating Weapon Light Assault Rifle Energy Gun Precision Beam Rifle Energy Cannon Advanced Beam Cannon Ballistic Gun Light Assault Rifle Launcher Mini Grenade Launcher Special Weapon Mining Laser Impact Weapon Powered Hammer Slashing Weapon Makeshift Axe Special Melee Weapon Datajack Build | -11 -10 -10 -9 -9 -9 -8 -8 -7 ------- Run | Yrd Mat Min Mat Min Exi Min Mat Fac Slots Evolved 6 | . . . 2 . . . 2 2 Power . | . . . . . . . . . Propulsion 2 | . . . 1 . . . 1 . Utility 3 | . . . 1 . . . 1 1 Weapon 1 | . . . . . . . . 1 Parts Attached 198 | . 24 15 43 7 4 7 76 22 Power 21 | . 2 2 2 . . 1 10 4 Engine 15 | . 2 2 1 . . . 7 3 Core 6 | . . . 1 . . 1 3 1 Reactor . | . . . . . . . . . Propulsion 57 | . 8 2 14 . . 2 27 4 Treads . | . . . . . . . . . Leg 53 | . 8 2 14 . . 2 27 . Wheel . | . . . . . . . . . Hover 4 | . . . . . . . . 4 Flight . | . . . . . . . . . Utility 51 | . 7 5 10 3 1 2 16 7 Device 25 | . 1 4 4 2 . 1 8 5 Storage 5 | . 2 . 1 . 1 . 1 . Processor 4 | . 1 . . . . 1 1 1 Hackware 1 | . . . . . . . 1 . Protection 16 | . 3 1 5 1 . . 5 1 Artifact . | . . . . . . . . . Weapon 69 | . 7 6 17 4 3 2 23 7 Energy Gun 18 | . . . 11 . . . 7 . Energy Cannon 13 | . . . 1 1 1 1 8 1 Ballistic Gun 10 | . 5 4 1 . . . . . Ballistic Cannon . | . . . . . . . . . Launcher 6 | . . . 1 2 . 1 2 . Special Weapon 2 | . . 2 . . . . . . Impact Weapon 10 | . . . . . . . 5 5 Slashing Weapon 5 | . . . 2 1 1 . 1 . Piercing Weapon . | . . . . . . . . . Special Melee Weapon 5 | . 2 . 1 . 1 . . 1 Unidentified Prototypes 4 | . . 1 1 . . . 1 1 Corrupted Parts 2 | . . . . . . . 1 1 System Corruption 12 | . . . . . . . 4 8 Parts Lost 46 | . 2 1 4 . . 4 24 11 Power 7 | . . . 1 . . 1 3 2 Propulsion 18 | . 1 1 . . . 1 11 4 Utility 13 | . 1 . 1 . . 2 6 3 Weapon 8 | . . . 2 . . . 4 2 Highest Loss Streak 5 | . 1 1 1 . . 3 5 4 To Critical Strikes . | . . . . . . . . . Average Slot Usage (%) 97 | . 98 100 99 100 100 98 92 90 Engine 9 | . 14 14 9 11 11 5 6 3 Core 1 | . . . 1 . . 5 2 2 Leg 29 | . 27 28 32 33 33 32 33 13 Device 8 | . . 4 12 16 11 10 12 6 Storage 11 | . 14 14 11 11 11 11 9 7 Processor 3 | . 4 . . . . 5 6 9 Protection 7 | . 7 9 9 5 11 5 4 4 Energy Gun 1 | . . . 5 . . . 4 . Energy Cannon 5 | . . . 8 10 11 11 8 . Ballistic Gun 7 | . 27 17 . . . . . . Special Weapon 2 | . . 10 . . . . . . Impact Weapon 2 | . . . . . . . 2 21 Slashing Weapon 3 | . . . 7 10 1 11 1 . Peak Build Rating 57 | 6 8 20 27 30 27 27 43 57 Average Rating 22 | 6 7 9 23 27 24 26 27 51 On Entrance 20 | 6 6 8 20 26 26 27 25 42 Naked Turns . | . . . . . . . . . Heaviest Build 67 | 11 30 41 42 49 58 58 64 67 Greatest Support 80 | 20 26 25 38 38 38 38 80 80 Greatest Overweight (x) 22 | . 2 2 1 1 1 2 5 22 Average Overweight (x) . | . . 1 . . . 1 . 1 Largest Inventory Capacity 20 | 8 15 15 15 15 20 20 20 20 Average Capacity 16 | 8 10 15 15 15 17 20 20 20 Most Carried 20 | 6 11 15 15 15 17 19 20 20 Average Carried 15 | 6 9 14 14 15 15 18 18 18 Final Capacity 20 | 8 15 15 15 15 20 20 20 20 Final Carried 19 | 6 11 15 15 15 17 18 19 19 Class Distribution -------------------- 69% | Mutant 27% | Scavenger-Mutant Dominant Class ---------------- Mutant | -10/Materials Scavenger-Mutant | -10/Mines Mutant | -9/Materials Mutant | -9/Mines Mutant | -9/Exiles Mutant | -8/Mines Scavenger-Mutant | -8/Materials Mutant | -7/Factory Resources | -11 -10 -10 -9 -9 -9 -8 -8 -7 ----------- Run | Yrd Mat Min Mat Min Exi Min Mat Fac Matter Collected 2609 | 200 585 173 398 150 . 130 666 307 Remotely . | . . . . . . . . . Salvage Created 6043 | . 614 77 1563 375 58 315 2533 508 Parts 296 | . 34 10 96 10 2 17 112 15 Haulers Intercepted 12 | . 2 . 5 . . . 3 2 Recyclers Shooed 9 | . . 2 1 1 . 1 4 . Parts Field Recycled . | . . . . . . . . . Retrieved Matter . | . . . . . . . . . Parts Self-Destructed . | . . . . . . . . . Prevented . | . . . . . . . . . Kills | -11 -10 -10 -9 -9 -9 -8 -8 -7 ------- Run | Yrd Mat Min Mat Min Exi Min Mat Fac Combat Hostiles Destroyed 100 | . 11 4 23 7 . 11 37 7 Melee 25 | . . . 8 1 . 4 10 2 Guns 31 | . 11 4 7 . . . 9 . Cannons 17 | . . . 4 1 . 3 9 . AOE 15 | . . . 3 5 . 3 4 . Classes Destroyed 17 | . 6 3 3 . . . 4 1 Worker 4 | . 1 . 2 . . . 1 . Builder 7 | . . 1 2 . . 1 3 . Tunneler 3 | . . 1 1 . . . . 1 Hauler 12 | . 2 . 5 . . . 3 2 Recycler 15 | . 1 . 2 3 . . 8 1 Mechanic 1 | . . . . . . . 1 . Operator 5 | . . . 3 . . . 2 . Watcher 7 | . 2 . 4 . . . 1 . Swarmer 27 | . 3 3 6 4 . 7 4 . Grunt 47 | . 8 . 9 3 . 4 21 2 Brawler 2 | . . . . . . . 1 1 Duelist 2 | . . . 1 . . . 1 . Sentry 16 | . . . 7 . . . 8 1 Demolisher 1 | . . 1 . . . . . . Specialist 2 | . . . . . . . . 2 Hunter 2 | . . . . . . . 1 1 Heavy 1 | . . . . . . . 1 . Best Kill Streak 7 | . 4 5 7 5 . 3 6 3 Combat Bots Only 5 | . 4 3 3 3 . 3 5 3 Max Kills in Single Turn 3 | . 1 1 2 3 . 2 2 1 Gunslinging . | . . . . . . . . . Exploded 2 | . . . 2 2 . 2 1 . Melee 1 | . . . 1 1 . 1 1 1 Uniques/NPCs Destroyed . | . . . . . . . . . Combat | -11 -10 -10 -9 -9 -9 -8 -8 -7 -------- Run | Yrd Mat Min Mat Min Exi Min Mat Fac Hostile Shots Fired 818 | . 76 19 115 18 . 55 262 273 Missed 226 | . 19 1 41 3 . 15 61 86 Damage Taken 8475 | . 616 348 998 209 . 494 3478 2332 Core 1687 | . 124 70 187 49 . 36 535 686 Absorbed by Shields 108 | . . . . . . . 108 . Redirected to Shielding 213 | . . . 11 . . . 109 93 Regen/Repaired (Parts) 465 | . 104 . 208 . . . . 153 Core Remaining (%) 39 | 100 . 22 . . . 32 2 . Volleys Fired 297 | . 55 23 72 9 . 26 112 . Largest 2 | . 2 2 2 2 . 1 2 . Hottest 150 | . 40 120 124 98 . 68 150 . Shots Fired 473 | . 110 39 105 11 . 26 182 . Gun 291 | . 110 33 66 . . . 82 . Cannon 163 | . . . 38 7 . 24 94 . Launcher 13 | . . . 1 4 . 2 6 . Special 6 | . . 6 . . . . . . Kinetic 145 | . 110 33 2 . . . . . Thermal 252 | . . 6 39 7 . 24 176 . Explosive 13 | . . . 1 4 . 2 6 . Electromagnetic 63 | . . . 63 . . . . . Robot Hit Streak 29 | . 10 7 14 1 . 4 29 . Robot Miss Streak 5 | . 3 3 4 3 . 5 3 . Penetration Max . | . . . . . . . . . Secondary Targets 7 | . 3 . 1 . . . 3 . Max Gunslinging Chain 1 | . 1 . 1 . . . 1 . Shots Hit Robots 445 | . 73 19 100 8 4 24 169 48 Core Hits 201 | . 37 13 46 11 1 13 74 6 Critical Kills 7 | . . . 2 . . 1 2 2 Critical Parts Destroyed 6 | . . 1 . . . . 1 4 Critical Strikes 26 | . . 1 5 1 . 1 11 7 Burn 6 | . . . . . . . 6 . Meltdown 5 | . . . 2 . . 1 2 . Destroy 1 | . . 1 . . . . . . Smash 8 | . . . . . . . 1 7 Sever 6 | . . . 3 1 . . 2 . Melee Attacks 189 | . . . 41 7 4 14 49 74 Impact 90 | . . . . . . . 18 72 Slashing 94 | . . . 41 7 1 14 31 . Piercing . | . . . . . . . . . Sneak Attacks 25 | . . . 4 4 2 2 6 7 Combat Hostiles 2 | . . . . . 2 . . . Follow-up Attacks 17 | . . . . . . . . 17 Damage Inflicted 12459 | . 689 181 2870 866 69 964 4737 2083 Guns 2910 | . 686 171 800 . . . 1253 . Cannons 2311 | . . . 569 21 . 305 1416 . Explosions 1857 | . . . 535 429 . 268 625 . Melee 5353 | . . . 966 416 69 391 1428 2083 Ramming 28 | . 3 10 . . . . 15 . Kinetic 863 | . 686 171 6 . . . . . Thermal 3939 | . . . 944 21 . 305 2669 . Explosive 1482 | . . . 160 429 . 268 625 . Electromagnetic 794 | . . . 794 . . . . . Impact 2625 | . . . . . . . 542 2083 Slashing 2728 | . . . 966 416 69 391 886 . Piercing . | . . . . . . . . . Highest Corruption 12 | . . . . . . . 6 12 Average Corruption 5 | . . . . . . . 3 7 Corruption Purged 12 | . . . . . . . 7 5 Corruption Blocked . | . . . . . . . . . Effects 42 | . . . . . . . 13 29 Message Errors 11 | . . . . . . . 4 7 Matter Fused 6 | . . . . . . . . 6 Heat Flow Errors 8 | . . . . . . . 2 6 Energy Discharges 7 | . . . . . . . 1 6 Parts Rejected 3 | . . . . . . . 1 2 Data Loss (minor) 4 | . . . . . . . 2 2 Data Loss (major) 1 | . . . . . . . 1 . Weapon Failures 2 | . . . . . . . 2 . Overload Shots . | . . . . . . . . . Overflow Damage 1100 | . . . 71 200 . 64 340 425 Projectiles 38 | . . . 11 . . . 27 . Explosions . | . . . . . . . . . Melee 1062 | . . . 60 200 . 64 313 425 Knockbacks 6 | . . . . . . . 3 3 Impact 6 | . . . . . . . 3 3 Kinetic . | . . . . . . . . . Secondary . | . . . . . . . . . Self-Inflicted Damage 326 | . . . 133 62 . . 131 . Shots 10 | . . . 4 2 . . 4 . Rammed . | . . . . . . . . . Targets Rammed 9 | . 2 2 . . . . 5 . Kicked 9 | . 2 2 . . . . 5 . Crushed . | . . . . . . . . . Highest Temperature 425 | . 45 87 212 58 . 71 425 178 Average Temperature 86 | . 15 20 38 23 . 35 138 73 Received Heat Transfer 2638 | . 225 . 339 45 . 198 1105 726 Effects 13 | . . . . . . . 13 . Shutdowns 1 | . . . . . . . 1 . Energy Bleed 3 | . . . . . . . 3 . Interference 7 | . . . . . . . 7 . Damage (minor) 2 | . . . . . . . 2 . Siege Activations . | . . . . . . . . . Robots Corrupted 12 | . . . 1 . . . 4 7 Combat Hostiles 8 | . . . 1 . . . 2 5 Parts Fried 24 | . . . 4 . . . 8 12 Impact Corruptions 26 | . . . . . . . 9 17 Robots Melted 7 | . . . 2 . . 1 4 . Combat Hostiles 4 | . . . . . . 1 3 . Parts Melted 22 | . . . 8 . . 4 9 1 Heat Transferred 7493 | . . . 1536 37 . 555 5365 . Parts Sabotaged . | . . . . . . . . . Parts Stolen . | . . . . . . . . . Parts Stripped . | . . . . . . . . . Power Chain Reactions 5 | . . . 5 . . . . . Alert | -11 -10 -10 -9 -9 -9 -8 -8 -7 ------- Run | Yrd Mat Min Mat Min Exi Min Mat Fac Peak Influence 633 | . 175 130 335 137 . 237 633 317 Initial 261 | . . 50 . 38 . . 13 261 Average 125 | . 57 13 149 110 . 84 285 189 Maximum Alert Level 2 | . . . 1 . . 1 2 1 Low Security (%) 74 | 100 100 100 65 100 . 88 34 44 Level 1 20 | . . . 34 . . 11 42 55 Level 2 4 | . . . . . . . 22 . Level 3 . | . . . . . . . . . Level 4 . | . . . . . . . . . Level 5 . | . . . . . . . . . High Security . | . . . . . . . . . Max Security . | . . . . . . . . . Squads Dispatched 17 | . 2 1 4 . . . 6 4 Investigation 6 | . 2 1 1 . . . 1 1 Extermination 1 | . . . . . . . . 1 Reinforcement 9 | . . . 3 . . . 4 2 Assault . | . . . . . . . . . Garrison 1 | . . . . . . . 1 . Intercept . | . . . . . . . . . Searches Triggered . | . . . . . . . . . Construction Impeded 1 | . . . . . . . . 1 Haulers Reinforced . | . . . . . . . . . Active Scanning Responses . | . . . . . . . . . Cargo Convoy Interrupts . | . . . . . . . . . Stealth | -11 -10 -10 -9 -9 -9 -8 -8 -7 --------- Run | Yrd Mat Min Mat Min Exi Min Mat Fac Distress Signals 8 | . 1 . 4 . . . 2 1 Communications Jammed . | . . . . . . . . . Distress Signals . | . . . . . . . . . Times Spotted 170 | . 20 4 44 8 . 16 60 18 Peak Tracking Total 8 | . 4 3 5 4 . 4 8 6 Tactical Retreats 13 | . . . 3 1 . 3 2 4 Traps | -11 -10 -10 -9 -9 -9 -8 -8 -7 ------- Run | Yrd Mat Min Mat Min Exi Min Mat Fac Traps Triggered 5 | . 1 . . . . . 3 1 Indirectly . | . . . . . . . . . Trap Hack Attempts 60 | . 28 . 32 . . . . . Triggered 1 | . 1 . . . . . . . Disarmed 3 | . 2 . 1 . . . . . Reprogrammed 4 | . 4 . . . . . . . Reused . | . . . . . . . . . Traps Extracted . | . . . . . . . . . Installed . | . . . . . . . . . Triggered . | . . . . . . . . . Machines | -11 -10 -10 -9 -9 -9 -8 -8 -7 ---------- Run | Yrd Mat Min Mat Min Exi Min Mat Fac Machines Disabled 4 | . . . 1 . . 1 2 . Max in Single Turn 1 | . . . 1 . . . 1 . Garrison Access 2 | . . . . . . . 1 1 Machines Repaired . | . . . . . . . . . Machines Dismantled . | . . . . . . . . . Machines Sabotaged . | . . . . . . . . . Overloaded Fab Kills . | . . . . . . . . . Hacking | -11 -10 -10 -9 -9 -9 -8 -8 -7 --------- Run | Yrd Mat Min Mat Min Exi Min Mat Fac Machines Accessed 37 | . 9 1 11 . 3 1 6 6 Terminals 24 | . 7 . 9 . . 1 4 3 Fabricators 1 | . . . . . . . . 1 Repair Stations 4 | . 1 . 2 . . . . 1 Recycling Units 1 | . 1 . . . . . . . Scanalyzers 1 | . . . . . . . 1 . Garrison Access 2 | . . . . . . . 1 1 Total Hacks 146 | . 39 1 41 . 23 6 15 21 Successful 99 | . 26 1 23 . 23 2 8 16 Failed 46 | . 12 . 18 . . 4 7 5 Catastrophic 3 | . 1 . 2 . . . . . Database Lockouts 1 | . 1 . . . . . . . Manual 46 | . 18 . 13 . 1 . 9 5 Terminals 86 | . 30 . 29 . . 6 10 11 Fabricators 4 | . . . . . . . . 4 Repair Stations 24 | . 7 . 12 . . . . 5 Recycling Units 2 | . 2 . . . . . . . Scanalyzers 4 | . . . . . . . 4 . Garrison Access 2 | . . . . . . . 1 1 Terminal Hacks 48 | . 11 1 8 . 23 2 . 3 Record 22 | . . . . . 22 . . . Part Schematic 1 | . 1 . . . . . . . Robot Analysis 1 | . . . 1 . . . . . Prototype ID Bank 4 | . 2 . 2 . . . . . Open Door 1 | . . 1 . . . . . . Branch Access Points 1 | . . . . . . . . 1 Emergency Access Points 2 | . 1 . 1 . . . . . Terminal Index 1 | . 1 . . . . . . . Alert Level 1 | . 1 . . . . . . . Unreport Threat 5 | . 1 . 2 . . . . 2 Locate Traps 4 | . 4 . . . . . . . Dispatch Records 1 | . . . . . . 1 . . Transport Status 1 | . . . 1 . . . . . Zone Layout 2 | . . . 1 . . 1 . . Derelict Proto ID Bank 1 | . . . . . 1 . . . Fabricator Hacks 2 | . . . . . . . . 2 Network Status 1 | . . . . . . . . 1 Load Schematic 1 | . . . . . . . . 1 Repair Station Hacks 19 | . 6 . 8 . . . . 5 Scan Component 10 | . 3 . 4 . . . . 3 Repair 9 | . 3 . 4 . . . . 2 Recycling Unit Hacks . | . . . . . . . . . Scanalyzer 2 | . . . . . . . 2 . Insert Component 1 | . . . . . . . 1 . Analyze 1 | . . . . . . . 1 . Garrison Access Hacks 2 | . . . . . . . 1 1 Seal Access 2 | . . . . . . . 1 1 Unauthorized Hacks 26 | . 9 . 7 . . . 5 5 Terminals 24 | . 8 . 7 . . . 5 4 Botnet 6 | . 2 . 2 . . . 1 1 Operators 1 | . 1 . . . . . . . Skim 17 | . 5 . 5 . . . 4 3 Fabricators 1 | . . . . . . . . 1 Recompile 1 | . . . . . . . . 1 Repair Stations . | . . . . . . . . . Recycling Units 1 | . 1 . . . . . . . Tunnel 1 | . 1 . . . . . . . Scanalyzers . | . . . . . . . . . Garrison Access . | . . . . . . . . . Data Cores Recovered 1 | . . . . . . . 1 . Used . | . . . . . . . . . Hacking Detections 30 | . 9 . 11 . . 1 4 5 Full Trace Events 1 | . . . . . . . 1 . Feedback Events . | . . . . . . . . . Feedback Blocked . | . . . . . . . . . Robot Schematics Acquired . | . . . . . . . . . Robots Built . | . . . . . . . . . Authchips . | . . . . . . . . . Time . | . . . . . . . . . Total Robot Build Rating . | . . . . . . . . . Part Schematics Acquired 2 | . 1 . . . . . 1 . Parts Built . | . . . . . . . . . Authchips . | . . . . . . . . . Time . | . . . . . . . . . Total Part Build Rating . | . . . . . . . . . Parts Repaired 9 | . 3 . 4 . . . . 2 Time 327 | . 78 . 161 . . . . 88 Parts Recycled . | . . . . . . . . . Recycled Matter . | . . . . . . . . . Retrieved Matter . | . . . . . . . . . Retrieved Components . | . . . . . . . . . Parts Scanalyzed 1 | . . . . . . . 1 . Part Schematics Acquired 1 | . . . . . . . 1 . Parts Damaged . | . . . . . . . . . Bothacking | -11 -10 -10 -9 -9 -9 -8 -8 -7 ------------ Run | Yrd Mat Min Mat Min Exi Min Mat Fac Used RIF Installer . | . . . . . . . . . Robots Hacked 1 | . . . . . . . . 1 Non-combat 1 | . . . . . . . . 1 Combat . | . . . . . . . . . Robot Hacks Applied 2 | . . . . . . . . 2 no_distress 1 | . . . . . . . . 1 find_fabricator 1 | . . . . . . . . 1 Relay Couplers Released . | . . . . . . . . . Fabnet Peak Effective % . | . . . . . . . . . Robots Rewired 2 | . . . . . 2 . . . Allies Hacked . | . . . . . . . . . Hacks Repelled . | . . . . . . . . . Allies | -11 -10 -10 -9 -9 -9 -8 -8 -7 -------- Run | Yrd Mat Min Mat Min Exi Min Mat Fac Total Allies 2 | . . . . . 2 . . . Largest Group 2 | . . . . . 2 2 . . Highest-Rated Group 29 | . . . . . 29 29 . . Highest-Rated Ally 21 | . . . . . 21 21 . . Total Orders 4 | . . 2 1 1 . . . . EXPLORE 1 | . . 1 . . . . . . RETURN 3 | . . 1 1 1 . . . . Ally Attacks 12 | . . . . . . 12 . . Total Damage 156 | . . . . . . 156 . . Kills 2 | . . . . . . 2 . . Allies Corrupted . | . . . . . . . . . Allies Melted . | . . . . . . . . . Intel | -11 -10 -10 -9 -9 -9 -8 -8 -7 ------- Run | Yrd Mat Min Mat Min Exi Min Mat Fac Robot Analysis Total 1 | . . . 1 . . . . . Derelict Logs Recovered 3 | . . 1 . 2 . . . . Drone Launches 3 | . . 2 . 1 . . . . Drone Recoveries 3 | . . 1 1 1 . . . . Exploration | -11 -10 -10 -9 -9 -9 -8 -8 -7 ------------- Run | Yrd Mat Min Mat Min Exi Min Mat Fac Turns Passed 12349 | 2 1574 2671 2135 723 731 1210 2173 1130 Spaces Moved 5027 | 2 708 583 981 449 451 561 815 477 Core 16 | . . . . . . . . 16 Treads . | . . . . . . . . . Legs 4847 | 2 708 583 981 449 451 561 815 297 Wheels . | . . . . . . . . . Hover 164 | . . . . . . . . 164 Flight . | . . . . . . . . . Fastest Speed 98 | 120 120 190 120 120 120 190 110 98 Average Speed 164 | 120 127 190 147 148 154 191 184 175 Slowest Speed 1150 | 120 260 260 190 190 190 260 470 1150 Overloaded Moves . | . . . . . . . . . Propulsion Burnouts . | . . . . . . . . . Robots Hopped . | . . . . . . . . . Cave-ins Triggered . | . . . . . . . . . Exploration Rate (%) 70 | 3 92 100 91 87 90 87 69 11 Regions Visited 8 Branch Regions 4 Pre-discovered Areas 5 | . 2 1 . 1 1 . . . Known Exits Taken 4 | . 1 1 . . . 1 1 . Unknown Exits Taken 4 | 1 . . 1 1 1 . . . Scrap Searched 3 | . . 1 . 1 . 1 . . Spaces Dug 76 | . . 6 8 19 . 22 13 8 Terrain Destroyed 161 | . . 6 27 28 . 22 70 8 Melee 22 | . . . 8 . . 1 5 8 Projectile 19 | . . 6 . 1 . . 12 . AOE 120 | . . . 19 27 . 21 53 . Terrain Rammed . | . . . . . . . . . Walls Destroyed . | . . . . . . . . . Machines Disabled . | . . . . . . . . . Actions | -11 -10 -10 -9 -9 -9 -8 -8 -7 --------- Run | Yrd Mat Min Mat Min Exi Min Mat Fac Total 8433 | 1 1289 2097 1529 484 481 653 1225 674 Wait 2446 | . 432 1461 309 12 . 44 106 82 Move 5019 | 1 707 582 980 448 450 560 814 477 Hop . | . . . . . . . . . Pick Up 85 | . 20 7 18 . 3 2 23 12 Fast Attach 53 | . 7 . 11 . . 2 22 11 Attach 34 | . 2 1 6 . . 2 18 5 Detach 2 | . . . . . . . 2 . Swap 112 | . 15 14 26 7 4 3 37 6 Drop 116 | . 21 7 34 1 2 . 37 14 Fire 297 | . 55 23 72 9 . 26 112 . Melee 169 | . . . 41 7 4 14 49 54 Ram . | . . . . . . . . . Kick 9 | . 2 2 . . . . 5 . Crush . | . . . . . . . . . Escape Stasis 13 | . . . . . . . . 13 Rewire 18 | . . . . . 18 . . . Trap 60 | . 28 . 32 . . . . . Miscellaneous . | . . . . . . . . . Route ------- -11/Scrapyard -10/Materials (discovered 6 exits: *Mat x3 / *Min x2 / Sub) -10/Mines (discovered 3 exits: *Mat x2 / *Sub) -9/Materials (discovered 4 exits: *Mat x3 / [*Min]) -9/Mines (discovered 2 exits: *Mat / *Exi) -9/Exiles -8/Mines (discovered 2 exits: *Mat x2) -8/Materials (discovered 2 exits: *Fac x2) -7/Factory (discovered 3 exits: Sto / Low x2) History --------- Turn | Location | Event 1 | -11/Scrapyard | Discovered new exit (range 1) 3 | -11/Scrapyard | Entered Materials 68 | -10/Materials | Discovered new exit (range 15) 217 | -10/Materials | Discovered new exit (range 16) 314 | -10/Materials | Build established: Mutant 314 | -10/Materials | Central database locked down 437 | -10/Materials | Discovered new exit (range 10) 477 | -10/Materials | Learned Storage security intel 509 | -10/Materials | Identified exit to Subcaves 525 | -10/Materials | Discovered new exit (range 8) 532 | -10/Materials | Learned 4 Recycling zone layouts 543 | -10/Materials | Identified exit to Materials 543 | -10/Materials | Learned location of 1 exit from Materials 545 | -10/Materials | Learned 4 Subcaves zone layouts 546 | -10/Materials | Identified exit to Mines 813 | -10/Materials | Repaired Lgt. Armor Plating 841 | -10/Materials | Repaired Aluminum Leg 868 | -10/Materials | Repaired Aluminum Leg 1577 | -10/Materials | Entered Mines 1775 | -10/Mines | Discovered exit to Materials (range 4) 1847 | -10/Mines | Discovered exit to Materials (range 12) 2078 | -10/Mines | A weapon hastily lodged in a ceiling crevice suddenly fell to the ground 2138 | -10/Mines | Received a Rocket Launcher from a helpful Derelict 2139 | -10/Mines | Assembled infested the area 2144 | -10/Mines | Assisted by a Guerilla fighting off Assembled 2468 | -10/Mines | Build established: Scavenger-Mutant 3361 | -10/Mines | Found a damaged Exp. Sensor Array with a note attached 3365 | -10/Mines | Found Prototype Device 3490 | -10/Mines | Learned location of Zion (-6) 3691 | -10/Mines | Core integrity fell below 50% 3760 | -10/Mines | Found the Drone Emporium 3773 | -10/Mines | Found Prototype Device 3774 | -10/Mines | Identified Sensor Drone Bay 3907 | -10/Mines | Discovered exit to Subcaves (range 28) 4068 | -10/Mines | Met a Derelict shopkeep closing up shop 4248 | -10/Mines | Entered Materials 4248 | -9/Materials | Accompanied by 1 ally 4248 | -9/Materials | Evolved 2 slots: Propulsion x1, Utility x1 4249 | -9/Materials | Identified exit to Materials 4604 | -9/Materials | Build established: Mutant 4689 | -9/Materials | Discovered new exit (range 15) 4873 | -9/Materials | Repaired Reaction Control System 4928 | -9/Materials | Repaired Corrupted Hacking Suite 5554 | -9/Materials | Discovered exit to Materials (range 10) 5675 | -9/Materials | Learned location of 1 exit from Storage 5738 | -9/Materials | Learned Storage trap positions 5754 | -9/Materials | Learned Storage emergency access door positions 5819 | -9/Materials | Learned 4 Recycling zone layouts 5869 | -9/Materials | Learned Recycling recycling unit intel 6319 | -9/Materials | Repaired Carbon-fiber Leg 6352 | -9/Materials | Repaired Imp. Aluminum Leg 6383 | -9/Materials | Entered Mines 6390 | -9/Mines | Core integrity fell below 50% 6411 | -9/Mines | Learned 4 Materials zone layouts 6447 | -9/Mines | Met a Derelict bent on vengeance 6716 | -9/Mines | Discovered exit to Materials (range 8) 6980 | -9/Mines | Learned location of Storage (-7) 7100 | -9/Mines | Deemed a non-threat by the Exiles lab entrance 7102 | -9/Mines | Discovered new exit (range 5) 7106 | -9/Mines | Entered Exiles 7106 | -9/Exiles | Found Exiles lab destroyed 7297 | -9/Exiles | Opened EX-Vault 7304 | -9/Exiles | Found Trap Reconfigurator 7816 | -9/Exiles | Discovered new exit (range 12) 7837 | -9/Exiles | Entered Mines 7837 | -8/Mines | Accompanied by 2 allies 7988 | -8/Mines | Discovered exit to Materials (range 12) 8071 | -8/Mines | Discovered exit to Materials (range 4) 8465 | -8/Mines | Lost 3 parts (1p2u) 9047 | -8/Mines | Entered Materials 9047 | -8/Materials | Evolved 2 slots: Propulsion x1, Utility x1 9048 | -8/Materials | Identified exit to Factory 9208 | -8/Materials | Build established: Scavenger-Mutant 9918 | -8/Materials | Lost 5 parts (1n3u1w) 9929 | -8/Materials | Core integrity fell below 50% 9990 | -8/Materials | Lost 5 parts (1p3n1w) 10469 | -8/Materials | Core integrity fell below 20% 10501 | -8/Materials | Lost 3 parts (2n1u) 10804 | -8/Materials | Build established: Mutant 10951 | -8/Materials | Garrison activated, responded to threat 11127 | -8/Materials | Discovered exit to Factory (range 15) 11214 | -8/Materials | Identified Exp. Sensor Array 11220 | -8/Materials | Entered Factory 11220 | -7/Factory | Evolved 2 slots: Utility x1, Weapon x1 11221 | -7/Factory | Identified exit to Storage 11498 | -7/Factory | Build established: Assassin 11646 | -7/Factory | System corruption reached 10% 11844 | -7/Factory | Build established: Mutant 11985 | -7/Factory | Repaired Rnf. Deuterium Engine 12031 | -7/Factory | Repaired Powered Hammer 12169 | -7/Factory | Core integrity fell below 50% 12206 | -7/Factory | Identified exit to Lower Caves 12331 | -7/Factory | Core integrity fell below 20% 12350 | -7/Factory | Self-destructed Last Messages --------------- 12282_ System corrupted: Matter fused (-7). 12282_ Acquired 7 matter. 12286_ Sneak attack on U-05 Engineer. 12286_ Destroyed Wheel. 12286_ U-05 Engineer system corrupted by crushing effect. 12287_ ALERT: Construction progress impeded, dispatching reinforcements to local area. 12292_ W-25 Informer sends out distress signal. 12304_ ALERT: Rogue bot located, Programmers report to Factory Zone 3L. 12310_ System corrupted: Rnf. Deuterium Engine rejected. 12311_ Acquired Rnf. Deuterium Engine. 12313_ Rnf. Deuterium Engine destroyed. 12326_ Powered Hammer destroyed. 12331_ GJBWQNABWR%Q0 H UR9>E 12347_ Imp. Utility Shielding destroyed. 12347_ Exp. Sensor Array destroyed. 12349_ System corrupted: Heat flow error (+176). Map ----- +----------------------------------------------------+ | ???????????????????????????????????"""???????????? | | ???????????????????????????????????"""???????????? | | ???????????????????????????????????"""???????????? | | ?????????????????????????????????????????????????? | | ?????????????????????????????????????""??????????? | | ?????????????????????????????????????Y"??????????? | | ?????????????????????????????????????""??????????? | | ?????????????????????????????????????????????????? | | ?????????????????????????????????????????????????? | | ?????????????????????????????????????????????????? | | ?????????????????????????????????????????????"""?? | | ?????????????????????????????????????????????"Y??? | | ?????????????????????????????????????????????"""?? | | ?????????????????????????????????????????????????? | | ?????????????????????????T?????#???????????????""" | | ?????????????????????????????? #???????????????""" | | ?????????????????????????????? #???????????????""" | | ????????????????????????????? #?????????????????? | | ????????????????????????????? #???????????????""" | | ???????????????????????????? #???????????????""" | | ???????????????????????????? #???????????????""" | | ??????????????????????????? #?????????????????? | | ??????##??????????????????? +???????????????""" | | ?????# ##????????????????? #???????????????""" | | ????? ################## #???????????????""" | | ????+ g % @s #?????????????????? | | ????? ???###### #######+###?????????????????? | | ?????# ######???# #???????????????????????????? | | ###### # #???# #??"""??????????????????????? | | # #####+##+##?""F??""""????????????????? | | # # #?""???""""????????????????? | | # # "T" #?"""??""""????????????????? | | ### + " % #?"""??""""????????????????? | | # #### # ! #??????""""????????????????? | | " # #??# # #??????""""????????????????? | | " + #??# #! !! #??????""""????????????????? | | " ###??# # !! #??????????????????????????? | | #????###### ! #??????????????????????????? | | ###?????????#### ######??????????????????????????? | | ????????????????##???????????????????????????????? | | | | | | | | | | | | | | | | | | | | | +----------------------------------------------------+ Best States ------------- Heat Dissipation 45 Energy Generation 16 Energy Capacity 290 Matter Stores 300 Matter Capacity 300 Sight Range 16 Robot Scan Range 20 Terrain Scan Density 10 ECM Strength 1 Jamming Range 12 Additional Mass Support 6 Armor Coverage 225 Resistance: EM 15 Core Shielding 20 Propulsion Shielding 66 Utility Shielding 66 Evasion (%) 63 Targeting Accuracy 6 Offensive Hacking 10 Authchip Count 1 Item Schematics ----------------- Hcp. Storage Unit | -10/Materials | Hacked Exp. Sensor Array | -8/Materials | Scanalyzed Robot Schematics ------------------ None Fabricated ------------ Nothing Alien Tech Used ----------------- None Achievements -------------- None Challenges ------------ None Game ------ Seed MultinovaScrapThruster Manual? 0 Play Time 01:37:09 Cumulative 170.3 hours Start 2024.09.19 @ 09:27:19 End 2024.09.19 @ 14:32:36 Sessions 3 Manual Loads 0 Difficulty Rogue Special Mode None Game No. 102 Rogue 102 Adventurer 0 Explorer 0 Win Type - Total 5 Types 5/0/0/0/0/0/0/0/0 Lore% 61 Gallery% 65 Achievement% 57 Wizard Run 0 Options --------- Layout 1 ASCII 0 Keyboard 0 Movement Numpad Keybinds 0 Fullscreen 1 Font 24/Smallcaps Map View 50x35 Zoom Use 0% Tactical HUD 1 Map Filters NONE Filters NONE Steam 1 RUN: 138cb89a-dc1e-4419-8b78-85d101eb11cc